Cogmind - Beta 9.3 @@@ ROGUE MODE // 2019.12.18 @ 12:59:17 // Winter2019/RPGLIKE Player: Cassie Rose Result: Core destroyed Performance ------------- Evolutions (2) 1000 Regions Visited (3) 600 Robots Destroyed (103) 515 Value Destroyed (1950) 1950 Prototype IDs (0) 0 Alien Tech Used (0) 0 Bonus (42) 42 TOTAL SCORE: 4107 Bonus ------- High Alert Combat Kills 42 Cogmind --------- Core Integrity 0/1350 Matter 109/300 Energy 305/305 System Corruption 0% Temperature Cool (1080) Movement Treading (160) Location -8/Materials Parts ------- > --- POWER (2) -------- Improved Ion Engine Light Deuterium Engine > --- PROPULSION (3) --- Light Treads Light Treads Light Treads > --- UTILITY (4) ------ Cryofiber Web Improved Signal Interpreter Advanced Terrain Scanner Terrain Scan Processor > --- WEAPON (3) ------- Autogun Minigun Advanced Assault Cannon > --- INVENTORY (2) ---- EM Pulse Cannon Improved Grenade Launcher Peak State ------------ > --- POWER ------------ Improved Ion Engine Light Deuterium Engine > --- PROPULSION ------- Light Treads Light Treads Light Treads > --- UTILITY ---------- Cryofiber Web Improved Signal Interpreter Advanced Terrain Scanner Terrain Scan Processor > --- WEAPON ----------- EM Pulse Cannon Advanced Assault Cannon Improved Grenade Launcher > --- INVENTORY -------- Autogun Minigun [Rating: 28] Favorites ----------- Power Ion Engine Engine Ion Engine Power Core Light Nuclear Core Propulsion Light Treads Treads Light Treads Utility Improved Signal Interpreter Device Improved Terrain Scanner Processor Improved Signal Interpreter Weapon Improved Light Cannon Energy Gun EM Pulse Gun Energy Cannon Light EM Pulse Cannon Ballistic Gun Light Assault Rifle Ballistic Cannon Improved Light Cannon Launcher Improved Grenade Launcher Build | -11 -10 -9 -8 ------- Run | Scr Mat Mat Mat Slots Evolved 8 | 4 1 3 . Power 1 | 1 . . . Propulsion 2 | 1 1 . . Utility 3 | 1 . 2 . Weapon 2 | 1 . 1 . Parts Attached 47 | 8 7 18 14 Power 12 | 2 4 2 4 Engine 11 | 2 4 2 3 Core 1 | . . . 1 Reactor . | . . . . Propulsion 12 | 2 . 7 3 Treads 12 | 2 . 7 3 Leg . | . . . . Wheel . | . . . . Hover . | . . . . Flight . | . . . . Utility 10 | 2 . 6 2 Device 7 | 1 . 4 2 Storage . | . . . . Processor 3 | 1 . 2 . Hackware . | . . . . Protection . | . . . . Artifact . | . . . . Weapon 13 | 2 3 3 5 Energy Gun 2 | . 1 1 . Energy Cannon 2 | . . 1 1 Ballistic Gun 4 | 2 . . 2 Ballistic Cannon 3 | . 2 . 1 Launcher 2 | . . 1 1 Special Weapon . | . . . . Impact Weapon . | . . . . Slashing Weapon . | . . . . Piercing Weapon . | . . . . Special Melee Weapon . | . . . . Unidentified Prototypes . | . . . . Parts Lost . | . . . . Power . | . . . . Propulsion . | . . . . Utility . | . . . . Weapon . | . . . . Highest Loss Streak . | . . . . Average Slot Usage (%) 97 | . 93 98 100 Engine 17 | . 23 18 11 Core 1 | . . . 4 Treads 25 | . 23 27 25 Device 13 | . 11 11 16 Processor 15 | . 11 18 16 Energy Gun 3 | . 7 3 . Energy Cannon 4 | . . 5 7 Ballistic Gun 2 | . 8 . . Ballistic Cannon 8 | . 7 9 8 Launcher 3 | . . 1 7 Naked Turns . | . . . . Heaviest Build 33 | 9 17 24 33 Greatest Support 90 | 40 55 75 90 Greatest Overweight (x) 2 | 2 . . . Average Overweight (x) . | . . . . Largest Inventory Capacity 2 | 2 2 2 2 Average Capacity 2 | 2 2 2 2 Most Carried 2 | 2 2 2 2 Average Carried 1 | . 1 1 1 Final Capacity 2 | 2 2 2 2 Final Carried 2 | . 2 2 2 Class Distribution -------------------- 41% | Scavenger-Skirmisher 33% | Scavenger-Mutant 24% | Mutant Dominant Class ---------------- Mutant | -10/Materials Scavenger-Mutant | -9/Materials Scavenger-Skirmisher | -8/Materials Resources | -11 -10 -9 -8 ----------- Run | Scr Mat Mat Mat Matter Collected 1415 | 230 290 470 425 Remotely . | . . . . Salvage Created 2906 | 120 644 766 1376 Parts 219 | 13 45 75 86 Haulers Intercepted 6 | . 1 2 3 Recyclers Shooed 4 | . 1 1 2 Parts Field Recycled . | . . . . Retrieved Matter . | . . . . Parts Self-Destructed . | . . . . Prevented . | . . . . Kills | -11 -10 -9 -8 ------- Run | Scr Mat Mat Mat Combat Hostiles Destroyed 62 | . 16 26 20 Guns 16 | . 12 4 . Cannons 37 | . 4 17 16 AOE 9 | . . 5 4 Classes Destroyed 10 | 2 5 3 . Worker 11 | . 2 1 8 Builder 6 | . . 3 3 Tunneler 4 | 3 . . 1 Hauler 6 | . 1 2 3 Recycler 5 | 1 . 1 3 Operator 3 | . . 1 2 Watcher 6 | . 2 1 3 Swarmer 29 | . 6 16 7 Grunt 23 | . 10 5 8 Sentry 10 | . . 5 5 Best Kill Streak 7 | 1 3 7 5 Combat Bots Only 7 | . 3 7 4 Max Kills in Single Turn 4 | 1 2 3 4 Gunslinging 1 | . 1 . . Exploded 3 | . . 3 3 Melee . | . . . . Uniques/NPCs Destroyed . | . . . . Combat | -11 -10 -9 -8 -------- Run | Scr Mat Mat Mat Damage Taken 3546 | . 771 1168 1607 Core 2857 | . 624 932 1301 Absorbed by Shields . | . . . . Redirected to Core 2288 | . 463 768 1057 Core Remaining (%) 53 | 100 46 14 . Volleys Fired 222 | 11 60 65 86 Largest 3 | 2 2 3 3 Hottest 147 | 40 75 125 147 Shots Fired 442 | 22 120 131 169 Gun 154 | 22 101 29 2 Cannon 282 | . 19 100 163 Launcher 6 | . . 2 4 Special . | . . . . Kinetic 274 | 22 101 65 86 Thermal . | . . . . Explosive 6 | . . 2 4 Electromagnetic 162 | . 19 64 79 Robot Hit Streak 19 | 5 13 16 19 Robot Miss Streak 3 | 1 3 3 3 Penetration Max . | . . . . Secondary Targets 2 | . 2 . . Max Gunslinging Chain 1 | . 1 . . Shots Hit Robots 294 | 15 87 81 111 Core Hits 146 | 7 36 45 58 Critical Hits 3 | 1 1 . 1 Critical Kills 1 | . 1 . . Critical Parts Destroyed 2 | 1 . . 1 Melee Attacks . | . . . . Impact . | . . . . Slashing . | . . . . Piercing . | . . . . Sneak Attacks . | . . . . Combat Hostiles . | . . . . Follow-up Attacks . | . . . . Damage Inflicted 6352 | 131 869 1851 3501 Guns 1108 | 131 673 288 16 Cannons 4320 | . 196 1205 2919 Explosions 924 | . . 358 566 Melee . | . . . . Ramming . | . . . . Kinetic 2890 | 131 697 712 1350 Thermal 324 | . . 163 161 Explosive 600 | . . 195 405 Electromagnetic 2538 | . 172 781 1585 Impact . | . . . . Slashing . | . . . . Piercing . | . . . . Highest Corruption 2 | . 2 . . Average Corruption 1 | . 1 . . Corruption Purged . | . . . . Effects 1 | . 1 . . Data Loss (minor) 1 | . 1 . . Overload Shots . | . . . . Overflow Damage 125 | . . 2 123 Projectiles 96 | . . 2 94 Explosions 29 | . . . 29 Melee . | . . . . Knockbacks 26 | . 3 3 20 Impact . | . . . . Kinetic 23 | . 2 3 18 Secondary 3 | . 1 . 2 Self-Inflicted Damage 34 | . . 32 2 Shots 2 | . . 1 1 Rammed . | . . . . Targets Rammed . | . . . . Kicked . | . . . . Crushed . | . . . . Highest Temperature 1080 | 20 222 353 1080 Average Temperature 132 | 8 64 119 211 Received Heat Transfer 1128 | . 315 165 648 Effects 23 | . . 5 18 Energy Bleed 4 | . . 1 3 Interference 10 | . . 4 6 Matter Decay 3 | . . . 3 Short Circuit 1 | . . . 1 Damage (minor) 2 | . . . 2 Damage (major) 2 | . . . 2 Damage (core) 1 | . . . 1 Siege Activations . | . . . . Robots Corrupted . | . . . . Combat Hostiles . | . . . . Parts Fried 6 | . . 1 5 Impact Corruptions 1 | . . . 1 Robots Melted . | . . . . Combat Hostiles . | . . . . Parts Melted . | . . . . Heat Transferred 400 | . . 250 150 Parts Sabotaged . | . . . . Parts Stolen . | . . . . Parts Stripped . | . . . . Power Chain Reactions 7 | . . 4 3 Missiles Intercepted . | . . . . Alert | -11 -10 -9 -8 ------- Run | Scr Mat Mat Mat Peak Influence 531 | 20 255 431 531 Average Influence 202 | 8 94 251 282 Maximum Alert Level 2 | . 1 2 2 Low Security (%) 46 | 100 92 24 16 Level 1 43 | . 7 61 66 Level 2 10 | . . 14 17 Level 3 . | . . . . Level 4 . | . . . . Level 5 . | . . . . High Security . | . . . . Max Security . | . . . . Squads Dispatched 10 | . 5 2 3 Investigation 2 | . 2 . . Extermination . | . . . . Reinforcement 8 | . 3 2 3 Assault . | . . . . Garrison . | . . . . Intercept . | . . . . Construction Impeded 1 | . . . 1 Haulers Reinforced . | . . . . Stealth | -11 -10 -9 -8 --------- Run | Scr Mat Mat Mat Distress Signals 5 | . 2 . 3 Communications Jammed . | . . . . Distress Signals . | . . . . Times Spotted 93 | . 29 30 34 Peak Tracking Total 6 | . 6 5 6 Tactical Retreats 5 | . . 1 4 Traps | -11 -10 -9 -8 ------- Run | Scr Mat Mat Mat Traps Triggered 8 | . 5 3 . Indirectly . | . . . . Trap Hack Attempts . | . . . . Triggered . | . . . . Disarmed . | . . . . Reprogrammed . | . . . . Reused . | . . . . Traps Extracted . | . . . . Installed . | . . . . Triggered . | . . . . Machines | -11 -10 -9 -8 ---------- Run | Scr Mat Mat Mat Machines Disabled 1 | . . 1 . Max in Single Turn 1 | . . 1 . Machines Sabotaged . | . . . . Garrisons Compromised . | . . . . Overloaded Fab Kills . | . . . . Fab Network Shutdowns . | . . . . Hacking | -11 -10 -9 -8 --------- Run | Scr Mat Mat Mat Machines Accessed . | . . . . Terminals . | . . . . Fabricators . | . . . . Repair Stations . | . . . . Recycling Units . | . . . . Scanalyzers . | . . . . Garrison Access . | . . . . Total Hacks . | . . . . Successful . | . . . . Failed . | . . . . Catastrophic . | . . . . Database Lockouts . | . . . . Manual . | . . . . Terminals . | . . . . Fabricators . | . . . . Repair Stations . | . . . . Recycling Units . | . . . . Scanalyzers . | . . . . Garrison Access . | . . . . Terminal Hacks . | . . . . Fabricator Hacks . | . . . . Repair Station Hacks . | . . . . Recycling Unit Hacks . | . . . . Scanalyzer . | . . . . Garrison Access Hacks . | . . . . Unauthorized Hacks . | . . . . Terminals . | . . . . Fabricators . | . . . . Repair Stations . | . . . . Recycling Units . | . . . . Scanalyzers . | . . . . Garrison Access . | . . . . Data Cores Recovered . | . . . . Used . | . . . . Hacking Detections . | . . . . Full Trace Events . | . . . . Feedback Events . | . . . . Feedback Blocked . | . . . . Robot Schematics Acquired . | . . . . Robots Built . | . . . . Matter . | . . . . Time . | . . . . Total Robot Build Rating . | . . . . Part Schematics Acquired . | . . . . Parts Built . | . . . . Matter . | . . . . Time . | . . . . Total Part Build Rating . | . . . . Parts Repaired . | . . . . Time . | . . . . Parts Recycled . | . . . . Recycled Matter . | . . . . Retrieved Matter . | . . . . Retrieved Components . | . . . . Parts Scanalyzed . | . . . . Part Schematics Acquired . | . . . . Parts Damaged . | . . . . Bothacking | -11 -10 -9 -8 ------------ Run | Scr Mat Mat Mat Used RIF Installer . | . . . . Robots Hacked . | . . . . Non-combat . | . . . . Combat . | . . . . Robot Hacks Applied . | . . . . Relay Couplers Released . | . . . . Robots Rewired . | . . . . Allies Hacked . | . . . . Hacks Repelled . | . . . . Allies | -11 -10 -9 -8 -------- Run | Scr Mat Mat Mat Total Allies . | . . . . Largest Group . | . . . . Highest-Rated Group . | . . . . Highest-Rated Ally . | . . . . Total Orders . | . . . . Ally Attacks . | . . . . Total Damage . | . . . . Kills . | . . . . Allies Corrupted . | . . . . Allies Melted . | . . . . Intel | -11 -10 -9 -8 ------- Run | Scr Mat Mat Mat Robot Analysis Total . | . . . . Derelict Logs Recovered . | . . . . Drone Launches . | . . . . Drone Recoveries . | . . . . Exploration | -11 -10 -9 -8 ------------- Run | Scr Mat Mat Mat Turns Passed 3994 | 186 1229 1173 1406 Spaces Moved 1934 | 96 644 550 644 Core 18 | 18 . . . Treads 1916 | 78 644 550 644 Legs . | . . . . Wheels . | . . . . Hover . | . . . . Flight . | . . . . Fastest Speed 50 | 50 160 160 160 Average Speed 159 | 148 160 160 160 Slowest Speed 160 | 160 160 160 160 Overloaded Moves . | . . . . Propulsion Burnouts . | . . . . Robots Hopped . | . . . . Cave-ins Triggered . | . . . . Exploration Rate (%) 50 | 6 90 56 51 Regions Visited 3 Branch Regions . Pre-discovered Areas . | . . . . Known Exits Taken 1 | . . 1 . Unknown Exits Taken 2 | 1 1 . . Scrap Searched . | . . . . Spaces Dug 1 | . . . 1 Terrain Destroyed 118 | . . 34 84 Melee . | . . . . Projectile 21 | . . 4 17 AOE 97 | . . 30 67 Actions | -11 -10 -9 -8 --------- Run | Scr Mat Mat Mat Total 2435 | 122 742 712 859 Wait 111 | . 4 28 79 Move 1931 | 95 643 549 644 Hop . | . . . . Pick Up 27 | 8 5 13 1 Fast Attach 6 | . . 2 4 Attach 13 | 8 . 5 . Detach . | . . . . Swap 28 | . 7 11 10 Drop 29 | . 8 8 13 Fire 222 | 11 60 65 86 Melee . | . . . . Ram . | . . . . Kick . | . . . . Crush . | . . . . Escape Stasis . | . . . . Rewire . | . . . . Trap . | . . . . Miscellaneous 68 | . 15 31 22 Route ------- -11/Scrapyard -10/Materials (discovered 4 exits: [*Mat x3] / [*Min]) -9/Materials (discovered 4 exits: *Mat x2 / *Min x2) -8/Materials History --------- Turn | Location | Event 1 | -11/Scrapyard | Upgraded with Power slot (x1) 1 | -11/Scrapyard | Upgraded with Propulsion slot (x1) 1 | -11/Scrapyard | Upgraded with Utility slot (x1) 1 | -11/Scrapyard | Upgraded with Weapon slot (x1) 12 | -11/Scrapyard | Discovered new exit (range 15) 187 | -11/Scrapyard | Entered Materials 307 | -10/Materials | Build established: Mutant 408 | -10/Materials | Discovered new exit (range 11) 466 | -10/Materials | Core integrity fell below 50% 658 | -10/Materials | Discovered new exit (range 15) 764 | -10/Materials | Reached level 2 767 | -10/Materials | Upgraded with Propulsion slot (x1) 807 | -10/Materials | Discovered new exit (range 16) 1206 | -10/Materials | Discovered new exit (range 15) 1281 | -10/Materials | Build established: Scavenger-Mutant 1416 | -10/Materials | Entered another Materials area 1417 | -9/Materials | Core integrity fell below 50% 1418 | -9/Materials | Reached level 3 1420 | -9/Materials | Upgraded with Utility slot (x1) 1495 | -9/Materials | Discovered new exit (range 12) 1572 | -9/Materials | Reached level 4 1711 | -9/Materials | Discovered new exit (range 14) 1905 | -9/Materials | Discovered new exit (range 9) 2093 | -9/Materials | Discovered new exit (range 15) 2127 | -9/Materials | Identified exit to Materials 2229 | -9/Materials | Reached level 5 2274 | -9/Materials | Upgraded with Utility slot (x1) 2274 | -9/Materials | Upgraded with Weapon slot (x1) 2279 | -9/Materials | Destroyed 7 combat bots 2350 | -9/Materials | Core integrity fell below 20% 2419 | -9/Materials | Identified exit to Mines 2580 | -9/Materials | Build established: Scavenger-Skirmisher 2589 | -9/Materials | Entered another Materials area 2590 | -8/Materials | Core integrity fell below 50% 2590 | -8/Materials | Core integrity fell below 20% 2591 | -8/Materials | Reached level 6 3004 | -8/Materials | Reached level 7 3865 | -8/Materials | Reached level 8 3996 | -8/Materials | Core destroyed Last Messages --------------- 03986_ Power failure averted by Cryofiber Web. 03987_ Overheating: Matter decay (-24). 03987_ G-47 Trooper knocked back. 03988_ Overheating: Imp. Ion Engine damaged (-29). 03989_ Power failure averted by Cryofiber Web. 03989_ Energy bleed averted by Cryofiber Web. 03989_ G-50 Soldier destroyed. 03990_ Power failure averted by Cryofiber Web. 03991_ U-05 Engineer lays Concrete. 03992_ Power failure averted by Cryofiber Web. 03993_ The unstable cave ceiling collapses. 03993_ U-05 Engineer lays Concrete. 03994_ Power failure averted by Cryofiber Web. 03994_ Overheating: System interference. 03994_ Adv. Assault Cannon temporarily disabled. 03994_ U-05 Engineer lays Concrete. 03995_ Overheating: System interference. 03995_ Terrain Scan Processor temporarily disabled. 03996_ Power failure averted by Cryofiber Web. 03996_ Overheating: Core damaged (-135). Map ----- +----------------------------------------------------+ | ? ???????????????????????????????? | | ????????????????????????????????? | | ###????????????????????????????????? | | ###???????????????????????????????? | | ###???????????????????????????????? | | ##??????????????????? ? ? ????????? | | ###? ??# "?" # # # ??? | | ### #?# "?? # ? ?###?##? | | ### ### """ # # ####### | | #### ### # # ####### | | #### #### """ # ? # # | | #### ####### "G # # # """# | | #### ####?# """ ? # # # "??? | | #### ####### ###### |+ "??# | | # #################### =%; """# | | # ##############!! ### !=# """# | | "" # # ?####!! ### ? # | | "" + # #####!! u ###### | | "" # # #####!! # """ # | | # + """ ##### = # """ # | | # # """ ##### + """ # | | # # """ ######### *g; # | | #### ################ [# # | | ### ############### = ;###### | | * ###############+#;%/%;###?## | | =%! % +%=@ %[ #?## | | = ##+############* * #### | | ### # ########%* #### | | ##### ### ######## """ #??# | | ##### ### """ ######## """"" #### | | ##### ### """ ######## """"" #?## | | ]### ### """ ######## """"" #### | | ### ### ######## """ #### | | ### ############################## | | ### #####################?####??## | | ### ###########################?#? | | ###+############################## | | # ! ####################?#### | | # """ ## #######??##### | | # """ ## " ####?######### | | " # """ "" ## ? ##?##?######## | | " # """## ? ###?########## | | # """ S"## """ ? ####?######### | | ## """ """## """ ###########?#? | | ### """ """## "?" ? ## "?" ??? | | ### ## ?????????????? | | #######+###########/#??? ??????????? | | ???????????????? | | ^ ? ? ???+ ??????????? | | ? ????????????????? | +----------------------------------------------------+ Best States ------------- Heat Dissipation 47 Energy Generation 21 Energy Capacity 415 Matter Stores 300 Matter Capacity 300 Sight Range 17 Robot Scan Range 18 Terrain Scan Range 20 Terrain Scan Density 385 Base Temperature (-) 100 Evasion (%) 40 Recoil Reduction 3 Item Schematics ----------------- None Robot Schematics ------------------ None Fabricated ------------ Nothing Alien Tech Used ----------------- None Achievements -------------- None Challenges ------------ None RPGLIKE | -11 -10 -9 -8 --------- Run | Scr Mat Mat Mat Levels Raised 7 | . 1 3 3 XP Earned 14215 | 3000 2055 4881 4279 XP Spent 11835 | 2920 1565 4485 2865 Upgrades 45 | 9 6 14 16 Power Slot 1 | 1 . . . Propulsion Slot 2 | 1 1 . . Utility Slot 3 | 1 . 2 . Weapon Slot 2 | 1 . 1 . Core Integrity 15 | . . 2 13 Mass Support 6 | . 3 . 3 Inventory Capacity 2 | 2 . . . Sight Range 1 | . . 1 . Sensor Range 9 | 1 1 7 . Terrain Scan Density 3 | 2 1 . . Ranged Accuracy 1 | . . 1 . Protomatter Created 538 | . 116 231 191 Integrity Restored 1434 | . 303 654 477 Core 1434 | . 303 654 477 Protomatter Decayed 13 | . . 13 . Game ------ Seed WaveMatterArray Manual? 0 Play Time 00:42:21 Cumulative 65.1 hours Start 2019.12.18 @ 11:14:28 End 2019.12.18 @ 12:59:17 Sessions 1 Manual Loads 0 Difficulty Rogue Special Mode Winter2019/RPGLIKE Game No. 108 Rogue 108 Adventurer 0 Explorer 0 Win Type - Total 0 Types 0/0/0/0/0/0/0 Lore% 22 Gallery% 26 Achievement% 26 Wizard Run 0 Options --------- ASCII 0 Keyboard 0 Movement Mouse Keybinds 0 Fullscreen 1 Font 18/SmallcapsGlow Map View 76x50 Tactical HUD 1 Map Filters NONE Filters LOW_CONTRAST(13,24,33)|BRIGHTNESS(120)|SATURATION(80) Steam 1 RUN: 1640b59b-ccb7-45cb-be2e-6d0e93c91bbe